[Event "*** Titled Tuesday Blitz"]
[Site "Chess.com"]
[Date "2020.04.14"]
[Round "7"]
[White "GukeshDommaraju"]
[Black "gmjoey1"]
[Result "1-0"]
[WhiteElo "2704"]
[BlackElo "2560"]
[TimeControl "180+1"]
[EndTime "11:13:49 PDT"]
[Termination "GukeshDommaraju won on time"]

1. e4 {[%clk 0:03:00.9]} 1... c6 {[%clk 0:02:59.1]} 2. d4 {[%clk 0:03:00.3]}
2... d5 {[%clk 0:03:00]} 3. Nc3 {[%clk 0:03:00.2]} 3... dxe4 {[%clk 0:03:00.2]}
4. Nxe4 {[%clk 0:03:00.4]} 4... Nf6 {[%clk 0:03:00.7]} 5. Nxf6+ {[%clk
0:03:00.7]} 5... exf6 {[%clk 0:03:01.2]} 6. c3 {[%clk 0:03:01.2]} 6... Bd6
{[%clk 0:03:01.1]} 7. Bd3 {[%clk 0:03:01.7]} 7... O-O {[%clk 0:03:01.7]} 8. Qc2
{[%clk 0:03:02.3]} 8... Re8+ {[%clk 0:03:02.1]} 9. Ne2 {[%clk 0:03:02.9]} 9...
g6 {[%clk 0:03:01.6]} 10. h4 {[%clk 0:02:58.3]} 10... Nd7 {[%clk 0:03:00.2]} 11.
h5 {[%clk 0:02:56]} 11... Nf8 {[%clk 0:03:00.2]} 12. hxg6 {[%clk 0:02:56.2]}
12... fxg6 {[%clk 0:02:59.4]} 13. Bh6 {[%clk 0:02:54]} 13... Qc7 {[%clk
0:02:58.8]} 14. O-O-O {[%clk 0:02:47.5]} 14... Be6 {[%clk 0:02:58.6]} 15. g3
{[%clk 0:02:29.9]} 15... Qf7 {[%clk 0:02:45.4]} 16. Nf4 {[%clk 0:02:07.6]} 16...
Bxf4+ {[%clk 0:02:42.9]} 17. Bxf4 {[%clk 0:02:05.3]} 17... b5 {[%clk 0:02:30.2]}
18. b3 {[%clk 0:01:39.8]} 18... a5 {[%clk 0:02:28]} 19. Kb2 {[%clk 0:01:40]}
19... a4 {[%clk 0:02:27.5]} 20. Bd6 {[%clk 0:01:37.8]} 20... Nd7 {[%clk
0:02:15.6]} 21. Rh6 {[%clk 0:01:25.4]} 21... f5 {[%clk 0:01:59.4]} 22. g4 {[%clk
0:01:09.9]} 22... axb3 {[%clk 0:01:30]} 23. axb3 {[%clk 0:01:10.8]} 23... Nb6
{[%clk 0:01:23.7]} 24. gxf5 {[%clk 0:01:05.7]} 24... Qa7 {[%clk 0:01:21.9]} 25.
fxe6 {[%clk 0:00:58.3]} 25... Rxe6 {[%clk 0:01:13.6]} 26. Bc5 {[%clk 0:00:56.3]}
26... b4 {[%clk 0:01:02.7]} 27. Bxb4 {[%clk 0:00:47.4]} 27... Nd5 {[%clk
0:01:01.9]} 28. Bc4 {[%clk 0:00:38.6]} 28... Nxb4 {[%clk 0:00:19.6]} 29. Bxe6+
{[%clk 0:00:37.7]} 29... Kg7 {[%clk 0:00:20.2]} 30. cxb4 {[%clk 0:00:38]} 30...
Kxh6 {[%clk 0:00:18.2]} 31. Kc3 {[%clk 0:00:36.8]} 31... Rf8 {[%clk 0:00:14.2]}
32. Bc4 {[%clk 0:00:36.8]} 32... Rf3+ {[%clk 0:00:06]} 33. Kb2 {[%clk
0:00:36.9]} 1-0

[Event "*** Titled Tuesday Blitz"]
[Site "Chess.com"]
[Date "2020.04.14"]
[Round "7"]
[White "Kumi29"]
[Black "PowerThinking2650"]
[Result "0-1"]
[WhiteElo "2402"]
[BlackElo "2221"]
[TimeControl "180+1"]
[EndTime "11:13:51 PDT"]
[Termination "PowerThinking2650 won on time"]

1. d4 {[%clk 0:03:00.9]} 1... Nf6 {[%clk 0:02:59.6]} 2. Bg5 {[%clk 0:03:00.2]}
2... g6 {[%clk 0:02:59.1]} 3. Bxf6 {[%clk 0:03:00.3]} 3... exf6 {[%clk 0:03:00]}
4. c4 {[%clk 0:03:01]} 4... f5 {[%clk 0:02:59]} 5. g3 {[%clk 0:03:01.2]} 5...
Bg7 {[%clk 0:02:59]} 6. Bg2 {[%clk 0:03:01.2]} 6... O-O {[%clk 0:02:54.8]} 7. e3
{[%clk 0:03:01.6]} 7... d6 {[%clk 0:02:47.7]} 8. Ne2 {[%clk 0:03:01]} 8... c6
{[%clk 0:02:47]} 9. Nbc3 {[%clk 0:02:59.9]} 9... Nd7 {[%clk 0:02:46.2]} 10. O-O
{[%clk 0:02:59.1]} 10... h5 {[%clk 0:02:45.7]} 11. b4 {[%clk 0:02:55.5]} 11...
a6 {[%clk 0:02:44.5]} 12. a4 {[%clk 0:02:55.1]} 12... Nf6 {[%clk 0:02:38]} 13.
b5 {[%clk 0:02:52.2]} 13... Bd7 {[%clk 0:02:37.4]} 14. Rb1 {[%clk 0:02:47]}
14... h4 {[%clk 0:02:36]} 15. bxc6 {[%clk 0:02:37.4]} 15... bxc6 {[%clk
0:02:34.7]} 16. Nf4 {[%clk 0:02:28.5]} 16... hxg3 {[%clk 0:02:34.3]} 17. hxg3
{[%clk 0:02:27.3]} 17... Re8 {[%clk 0:02:32.7]} 18. Rb7 {[%clk 0:02:21.5]} 18...
Ng4 {[%clk 0:02:27]} 19. Qb3 {[%clk 0:02:15.6]} 19... Bh6 {[%clk 0:01:12.2]} 20.
Rb1 {[%clk 0:01:44.2]} 20... Bxf4 {[%clk 0:01:07.6]} 21. exf4 {[%clk 0:01:44.5]}
21... Rc8 {[%clk 0:00:51.8]} 22. Qb6 {[%clk 0:01:42.5]} 22... Qe7 {[%clk
0:00:40.5]} 23. Qa7 {[%clk 0:01:34.1]} 23... Rcd8 {[%clk 0:00:34.5]} 24. Bxc6
{[%clk 0:01:28.8]} 24... Nxf2 {[%clk 0:00:30.8]} 25. Nd5 {[%clk 0:01:01.6]}
25... Nh3+ {[%clk 0:00:22.1]} 26. Kh1 {[%clk 0:00:17.5]} 26... Qe4+ {[%clk
0:00:21.3]} 27. Kh2 {[%clk 0:00:17.4]} 27... Qe2+ {[%clk 0:00:20.8]} 28. Kxh3
{[%clk 0:00:17.9]} 28... Kg7 {[%clk 0:00:19.9]} 0-1

[Event "*** Titled Tuesday Blitz"]
[Site "Chess.com"]
[Date "2020.04.14"]
[Round "7"]
[White "K_A_S_T_O_R"]
[Black "moro182"]
[Result "0-1"]
[WhiteElo "2817"]
[BlackElo "2694"]
[TimeControl "180+1"]
[EndTime "11:13:52 PDT"]
[Termination "moro182 won on time"]

1. e4 {[%clk 0:03:00.9]} 1... e5 {[%clk 0:02:59.7]} 2. Nf3 {[%clk 0:03:00.5]}
2... Nc6 {[%clk 0:02:59.8]} 3. Bb5 {[%clk 0:03:01]} 3... a6 {[%clk 0:02:59.9]}
4. Ba4 {[%clk 0:03:01.5]} 4... Nf6 {[%clk 0:03:00.1]} 5. O-O {[%clk 0:03:02.1]}
5... b5 {[%clk 0:03:00.7]} 6. Bb3 {[%clk 0:03:01.7]} 6... Bc5 {[%clk 0:03:01.6]}
7. c3 {[%clk 0:02:53]} 7... d6 {[%clk 0:03:00.8]} 8. d4 {[%clk 0:02:53]} 8...
Bb6 {[%clk 0:03:00.5]} 9. a4 {[%clk 0:02:52]} 9... Rb8 {[%clk 0:02:57.9]} 10.
axb5 {[%clk 0:02:48]} 10... axb5 {[%clk 0:02:57.6]} 11. Na3 {[%clk 0:02:38.4]}
11... O-O {[%clk 0:02:56.9]} 12. Nxb5 {[%clk 0:02:31.8]} 12... Bg4 {[%clk
0:02:56]} 13. h3 {[%clk 0:02:00.8]} 13... Bxf3 {[%clk 0:02:51.6]} 14. gxf3
{[%clk 0:02:00.3]} 14... Nh5 {[%clk 0:02:42.8]} 15. f4 {[%clk 0:01:55.1]} 15...
Nxf4 {[%clk 0:02:17.2]} 16. Bxf4 {[%clk 0:01:54.2]} 16... exf4 {[%clk
0:02:18.1]} 17. Ba4 {[%clk 0:01:36.6]} 17... Ne7 {[%clk 0:02:10.9]} 18. b4
{[%clk 0:01:29.4]} 18... Ng6 {[%clk 0:01:57.2]} 19. Qg4 {[%clk 0:01:26.8]} 19...
Qf6 {[%clk 0:01:46.1]} 20. Na3 {[%clk 0:01:10.2]} 20... Bxd4 {[%clk 0:01:22.3]}
21. cxd4 {[%clk 0:01:02.9]} 21... Qxd4 {[%clk 0:01:23.2]} 22. Nc2 {[%clk
0:00:55.2]} 22... Qxe4 {[%clk 0:01:18.7]} 23. Rfe1 {[%clk 0:00:53.8]} 23... Qc4
{[%clk 0:01:13]} 24. Qe2 {[%clk 0:00:49.1]} 24... Qc3 {[%clk 0:01:08.7]} 25. Ra3
{[%clk 0:00:48.8]} 25... Qf6 {[%clk 0:01:05.2]} 26. Qe4 {[%clk 0:00:40.2]} 26...
Ne5 {[%clk 0:01:02.4]} 27. Kh2 {[%clk 0:00:27.5]} 27... Qh4 {[%clk 0:00:59.7]}
28. Qg2 {[%clk 0:00:27]} 28... Ra8 {[%clk 0:00:49.8]} 29. Rg1 {[%clk 0:00:25.7]}
29... g6 {[%clk 0:00:48.9]} 30. Bb5 {[%clk 0:00:18]} 30... Rxa3 {[%clk
0:00:45.9]} 31. Nxa3 {[%clk 0:00:18.9]} 31... f3 {[%clk 0:00:43.2]} 32. Qg3
{[%clk 0:00:19.1]} 32... Qxb4 {[%clk 0:00:42.9]} 33. Ra1 {[%clk 0:00:14.9]}
33... Qb2 {[%clk 0:00:31.5]} 34. Qg1 {[%clk 0:00:14]} 34... Ra8 {[%clk
0:00:31.6]} 0-1

[Event "*** Titled Tuesday Blitz"]
[Site "Chess.com"]
[Date "2020.04.14"]
[Round "7"]
[White "tonyq11"]
[Black "Jbd735"]
[Result "0-1"]
[WhiteElo "2240"]
[BlackElo "2425"]
[TimeControl "180+1"]
[EndTime "11:13:52 PDT"]
[Termination "Jbd735 won by checkmate"]

1. d4 {[%clk 0:03:00.9]} 1... d5 {[%clk 0:02:59]} 2. c4 {[%clk 0:02:59.3]} 2...
c6 {[%clk 0:02:58.9]} 3. Nf3 {[%clk 0:02:56.1]} 3... e6 {[%clk 0:02:58.9]} 4.
Nc3 {[%clk 0:02:50.6]} 4... Nf6 {[%clk 0:02:58.7]} 5. e3 {[%clk 0:02:49.9]} 5...
Nbd7 {[%clk 0:02:58.1]} 6. Qc2 {[%clk 0:02:49.8]} 6... Bd6 {[%clk 0:02:57.6]} 7.
b3 {[%clk 0:02:50]} 7... O-O {[%clk 0:02:57]} 8. Be2 {[%clk 0:02:50.3]} 8... Qe7
{[%clk 0:02:54.8]} 9. Bb2 {[%clk 0:02:50.6]} 9... dxc4 {[%clk 0:02:54.1]} 10.
bxc4 {[%clk 0:02:46.1]} 10... e5 {[%clk 0:02:54.3]} 11. O-O {[%clk 0:02:45.9]}
11... Re8 {[%clk 0:02:46]} 12. a4 {[%clk 0:02:38.7]} 12... e4 {[%clk 0:02:42.2]}
13. Nd2 {[%clk 0:02:38.3]} 13... Nf8 {[%clk 0:02:42.1]} 14. c5 {[%clk
0:02:24.4]} 14... Bc7 {[%clk 0:02:35.3]} 15. Rfd1 {[%clk 0:02:15.6]} 15... Ng6
{[%clk 0:02:33.2]} 16. Nc4 {[%clk 0:01:47.3]} 16... Bg4 {[%clk 0:02:13.4]} 17.
a5 {[%clk 0:01:30.8]} 17... a6 {[%clk 0:01:58.7]} 18. h3 {[%clk 0:01:23.2]}
18... Bf5 {[%clk 0:01:29.2]} 19. Na4 {[%clk 0:01:19.1]} 19... Qe6 {[%clk
0:01:21.1]} 20. Bf1 {[%clk 0:00:48.3]} 20... Nh4 {[%clk 0:01:20.8]} 21. Nab6
{[%clk 0:00:36.9]} 21... Rad8 {[%clk 0:01:20.1]} 22. Bc3 {[%clk 0:00:24.4]}
22... Nd5 {[%clk 0:01:08.3]} 23. Nxd5 {[%clk 0:00:23.6]} 23... cxd5 {[%clk
0:00:59.4]} 24. Nb6 {[%clk 0:00:23.5]} 24... Bb8 {[%clk 0:00:49.7]} 25. Bb4
{[%clk 0:00:19.4]} 25... Qc6 {[%clk 0:00:49.3]} 26. Qa4 {[%clk 0:00:17.4]} 26...
Qc7 {[%clk 0:00:46.9]} 27. g3 {[%clk 0:00:16.6]} 27... Nf3+ {[%clk 0:00:45.9]}
28. Kg2 {[%clk 0:00:16.4]} 28... Re6 {[%clk 0:00:40.1]} 29. Be2 {[%clk
0:00:16.2]} 29... Bg4 {[%clk 0:00:37.4]} 30. Ra2 {[%clk 0:00:11.6]} 30... Bxh3+
{[%clk 0:00:23.4]} 31. Kxh3 {[%clk 0:00:03.9]} 31... Rh6+ {[%clk 0:00:22.7]} 32.
Kg2 {[%clk 0:00:02.6]} 32... Rh2+ {[%clk 0:00:22.4]} 33. Kf1 {[%clk 0:00:02.8]}
33... Rxf2+ {[%clk 0:00:22.4]} 34. Kxf2 {[%clk 0:00:02.3]} 34... Qxg3+ {[%clk
0:00:22.8]} 35. Kf1 {[%clk 0:00:02.3]} 35... Qg1# {[%clk 0:00:23.2]} 0-1

[Event "*** Titled Tuesday Blitz"]
[Site "Chess.com"]
[Date "2020.04.14"]
[Round "7"]
[White "Andro2"]
[Black "vovachesss"]
[Result "0-1"]
[WhiteElo "2418"]
[BlackElo "2596"]
[TimeControl "180+1"]
[EndTime "11:13:54 PDT"]
[Termination "vovachesss won on time"]

1. d4 {[%clk 0:03:00.9]} 1... Nf6 {[%clk 0:02:57.4]} 2. Nc3 {[%clk 0:02:59.6]}
2... d5 {[%clk 0:02:50.6]} 3. Bf4 {[%clk 0:02:59.4]} 3... Bf5 {[%clk 0:02:49.9]}
4. f3 {[%clk 0:02:59.4]} 4... e6 {[%clk 0:02:49.5]} 5. g4 {[%clk 0:03:00]} 5...
Bg6 {[%clk 0:02:49.3]} 6. h4 {[%clk 0:03:00.4]} 6... h6 {[%clk 0:02:18.5]} 7. h5
{[%clk 0:02:59.7]} 7... Bh7 {[%clk 0:02:18.8]} 8. e3 {[%clk 0:03:00.3]} 8... c5
{[%clk 0:02:11.4]} 9. Nb5 {[%clk 0:02:56.7]} 9... Na6 {[%clk 0:02:11.2]} 10. c3
{[%clk 0:02:55]} 10... Be7 {[%clk 0:02:08.7]} 11. a4 {[%clk 0:02:49.4]} 11...
O-O {[%clk 0:02:07.5]} 12. Bd3 {[%clk 0:02:49.9]} 12... cxd4 {[%clk 0:01:55.8]}
13. exd4 {[%clk 0:02:45.7]} 13... Re8 {[%clk 0:01:43.7]} 14. Ne2 {[%clk
0:02:41.3]} 14... Bxd3 {[%clk 0:00:54.5]} 15. Qxd3 {[%clk 0:02:40.3]} 15... Nd7
{[%clk 0:00:55.4]} 16. Kf2 {[%clk 0:02:10.6]} 16... e5 {[%clk 0:00:48.6]} 17.
dxe5 {[%clk 0:01:56.3]} 17... Bc5+ {[%clk 0:00:48.8]} 18. Kg2 {[%clk 0:01:21.2]}
18... Nxe5 {[%clk 0:00:48.5]} 19. Bxe5 {[%clk 0:00:40.4]} 19... Rxe5 {[%clk
0:00:49.4]} 20. Nbd4 {[%clk 0:00:39.1]} 20... Qe7 {[%clk 0:00:47]} 21. Ng3
{[%clk 0:00:29.1]} 21... Re8 {[%clk 0:00:39.3]} 22. Ndf5 {[%clk 0:00:22.7]}
22... Qg5 {[%clk 0:00:30.2]} 23. Rhf1 {[%clk 0:00:21]} 23... Qf4 {[%clk
0:00:27.1]} 24. Rad1 {[%clk 0:00:10.9]} 24... Bb6 {[%clk 0:00:26.7]} 25. Nd4
{[%clk 0:00:10]} 25... Bc7 {[%clk 0:00:24]} 26. Rde1 {[%clk 0:00:06.6]} 26...
Rxe1 {[%clk 0:00:22.1]} 27. Ndf5 {[%clk 0:00:04.9]} 27... R1e5 {[%clk
0:00:18.8]} 28. Rf2 {[%clk 0:00:03.9]} 28... Rxf5 {[%clk 0:00:17]} 29. Nxf5
{[%clk 0:00:01.1]} 29... Qh2+ {[%clk 0:00:17.2]} 0-1

[Event "*** Titled Tuesday Blitz"]
[Site "Chess.com"]
[Date "2020.04.14"]
[Round "7"]
[White "BillCoe"]
[Black "GodDMuhammad"]
[Result "0-1"]
[WhiteElo "2060"]
[BlackElo "2236"]
[TimeControl "180+1"]
[EndTime "11:13:54 PDT"]
[Termination "GodDMuhammad won by checkmate"]

1. e4 {[%clk 0:03:00.9]} 1... e5 {[%clk 0:02:59.6]} 2. Nf3 {[%clk 0:03:01]} 2...
f5 {[%clk 0:03:00.1]} 3. Nxe5 {[%clk 0:02:59.4]} 3... Qf6 {[%clk 0:03:00.4]} 4.
d4 {[%clk 0:02:59.5]} 4... d6 {[%clk 0:02:59.6]} 5. Nc4 {[%clk 0:02:56.9]} 5...
fxe4 {[%clk 0:03:00]} 6. Be2 {[%clk 0:02:52.2]} 6... d5 {[%clk 0:02:56.6]} 7.
Ne3 {[%clk 0:02:51.3]} 7... c6 {[%clk 0:02:57]} 8. O-O {[%clk 0:02:46]} 8... Be6
{[%clk 0:02:57.5]} 9. c4 {[%clk 0:02:43.8]} 9... Bd6 {[%clk 0:02:55.3]} 10. b3
{[%clk 0:02:32.1]} 10... Ne7 {[%clk 0:02:54.7]} 11. Bg4 {[%clk 0:02:24.7]} 11...
O-O {[%clk 0:02:53.2]} 12. Bxe6+ {[%clk 0:02:23]} 12... Qxe6 {[%clk 0:02:54.1]}
13. Nc3 {[%clk 0:02:22.6]} 13... Nd7 {[%clk 0:02:53.8]} 14. Qg4 {[%clk
0:02:15.3]} 14... Nf5 {[%clk 0:02:45.5]} 15. Nxf5 {[%clk 0:02:07.1]} 15... Rxf5
{[%clk 0:02:46.4]} 16. cxd5 {[%clk 0:02:03.5]} 16... cxd5 {[%clk 0:02:45.8]} 17.
Nd1 {[%clk 0:02:01]} 17... Nf6 {[%clk 0:02:45.2]} 18. Qh3 {[%clk 0:01:42.3]}
18... Re8 {[%clk 0:02:34.1]} 19. Ne3 {[%clk 0:01:39.1]} 19... Rh5 {[%clk
0:02:32.9]} 20. Qxe6+ {[%clk 0:01:39.6]} 20... Rxe6 {[%clk 0:02:33.8]} 21. h3
{[%clk 0:01:37.6]} 21... Bb4 {[%clk 0:02:22]} 22. Bb2 {[%clk 0:01:34.5]} 22...
Rg5 {[%clk 0:02:22.1]} 23. Rac1 {[%clk 0:01:29.8]} 23... Nh5 {[%clk 0:02:21.6]}
24. Rc8+ {[%clk 0:01:28.1]} 24... Kf7 {[%clk 0:02:20.8]} 25. Rc7+ {[%clk
0:01:28.3]} 25... Re7 {[%clk 0:02:21]} 26. Rfc1 {[%clk 0:01:20.4]} 26... Nf4
{[%clk 0:02:20.2]} 27. Rxe7+ {[%clk 0:01:12.5]} 27... Kxe7 {[%clk 0:02:20.1]}
28. Rc7+ {[%clk 0:01:12.6]} 28... Kd8 {[%clk 0:02:20.3]} 29. Rxb7 {[%clk
0:01:11.7]} 29... Bd2 {[%clk 0:02:20.8]} 30. h4 {[%clk 0:01:04.3]} 30... Rg6
{[%clk 0:02:18.9]} 31. Rxa7 {[%clk 0:00:55.3]} 31... Bxe3 {[%clk 0:02:03.7]} 32.
fxe3 {[%clk 0:00:56.2]} 32... Nxg2 {[%clk 0:01:58.5]} 33. h5 {[%clk 0:00:56.3]}
33... Rg5 {[%clk 0:01:57.4]} 34. Kf2 {[%clk 0:00:54.1]} 34... Nh4 {[%clk
0:01:57.3]} 35. h6 {[%clk 0:00:50.8]} 35... gxh6 {[%clk 0:01:54.2]} 36. Ba3
{[%clk 0:00:42.9]} 36... Rg2+ {[%clk 0:01:47.5]} 37. Kf1 {[%clk 0:00:42.8]}
37... Kc8 {[%clk 0:01:47.8]} 38. Rxh7 {[%clk 0:00:37.8]} 38... Rxa2 {[%clk
0:01:47.8]} 39. Bc5 {[%clk 0:00:33.1]} 39... Nf5 {[%clk 0:01:46.4]} 40. b4
{[%clk 0:00:28.1]} 40... Nxe3+ {[%clk 0:01:45.9]} 41. Ke1 {[%clk 0:00:25.7]}
41... Ng2+ {[%clk 0:01:37.7]} 42. Kf1 {[%clk 0:00:24.6]} 42... e3 {[%clk
0:01:33.6]} 43. Re7 {[%clk 0:00:24]} 43... Rf2+ {[%clk 0:01:32.8]} 44. Kg1
{[%clk 0:00:21.3]} 44... Rb2 {[%clk 0:01:26.7]} 45. Re5 {[%clk 0:00:15.4]} 45...
h5 {[%clk 0:01:16.8]} 46. Rxh5 {[%clk 0:00:10.1]} 46... Ne1 {[%clk 0:01:16]} 47.
Rh8+ {[%clk 0:00:07.9]} 47... Kb7 {[%clk 0:01:15.7]} 48. Re8 {[%clk 0:00:06.6]}
48... Nf3+ {[%clk 0:01:14.9]} 49. Kf1 {[%clk 0:00:05.9]} 49... Rf2# {[%clk
0:01:15.3]} 0-1

[Event "*** Titled Tuesday Blitz"]
[Site "Chess.com"]
[Date "2020.04.14"]
[Round "7"]
[White "machupichu10"]
[Black "mitrabhaa"]
[Result "1-0"]
[WhiteElo "2808"]
[BlackElo "2631"]
[TimeControl "180+1"]
[EndTime "11:13:55 PDT"]
[Termination "machupichu10 won by resignation"]

1. d4 {[%clk 0:03:00.9]} 1... Nf6 {[%clk 0:02:58.7]} 2. Nf3 {[%clk 0:03:01.1]}
2... b6 {[%clk 0:02:52.5]} 3. g3 {[%clk 0:02:59.4]} 3... Bb7 {[%clk 0:02:52.3]}
4. Bg2 {[%clk 0:02:59.7]} 4... c5 {[%clk 0:02:49.4]} 5. O-O {[%clk 0:02:50]}
5... cxd4 {[%clk 0:02:49.3]} 6. Nxd4 {[%clk 0:02:50.4]} 6... Bxg2 {[%clk
0:02:49]} 7. Kxg2 {[%clk 0:02:51.3]} 7... Nc6 {[%clk 0:02:49.1]} 8. c4 {[%clk
0:02:49.7]} 8... Rc8 {[%clk 0:02:49.5]} 9. b3 {[%clk 0:02:48.3]} 9... Nxd4
{[%clk 0:02:47]} 10. Qxd4 {[%clk 0:02:48.1]} 10... d5 {[%clk 0:02:47.6]} 11. Nc3
{[%clk 0:02:16.1]} 11... dxc4 {[%clk 0:02:45.3]} 12. Qxd8+ {[%clk 0:02:16]}
12... Kxd8 {[%clk 0:02:41.5]} 13. Bf4 {[%clk 0:02:07.7]} 13... e6 {[%clk
0:02:32.7]} 14. Rfd1+ {[%clk 0:02:06.7]} 14... Ke8 {[%clk 0:02:26.6]} 15. Nb5
{[%clk 0:01:53.2]} 15... Bc5 {[%clk 0:01:57.6]} 16. Nxa7 {[%clk 0:01:45.5]}
16... Ra8 {[%clk 0:01:57.4]} 17. Nb5 {[%clk 0:01:22.9]} 17... Ke7 {[%clk
0:01:44.8]} 18. bxc4 {[%clk 0:01:23]} 18... Ra4 {[%clk 0:01:44.5]} 19. Bd6+
{[%clk 0:01:14.4]} 19... Bxd6 {[%clk 0:01:43.8]} 20. Rxd6 {[%clk 0:01:15.3]}
20... Rb8 {[%clk 0:01:35.9]} 21. Rc6 {[%clk 0:01:12.3]} 21... Ne8 {[%clk
0:01:32.1]} 22. c5 {[%clk 0:00:48.2]} 22... Rb4 {[%clk 0:01:18.2]} 23. a4 {[%clk
0:00:46.2]} 23... bxc5 {[%clk 0:01:15.4]} 24. Rxc5 {[%clk 0:00:46.4]} 24... Ra8
{[%clk 0:01:07.1]} 25. a5 {[%clk 0:00:45.3]} 25... Ra6 {[%clk 0:01:04.5]} 26. h4
{[%clk 0:00:36]} 26... h6 {[%clk 0:01:00.6]} 27. h5 {[%clk 0:00:35.8]} 27... Rb2
{[%clk 0:00:57]} 28. Nd4 {[%clk 0:00:35.7]} 28... Nd6 {[%clk 0:00:33.5]} 29. Rc6
{[%clk 0:00:30.3]} 29... Ra7 {[%clk 0:00:33.6]} 30. a6 {[%clk 0:00:29.5]} 30...
Nb5 {[%clk 0:00:33.7]} 31. Rb6 {[%clk 0:00:22.7]} 31... Nxd4 {[%clk 0:00:20.6]}
32. Rxb2 {[%clk 0:00:22.7]} 32... Kd7 {[%clk 0:00:21.2]} 33. Rb7+ {[%clk
0:00:22.8]} 33... Rxb7 {[%clk 0:00:21.7]} 34. axb7 {[%clk 0:00:23.7]} 34... Kc7
{[%clk 0:00:22.6]} 35. Rd1 {[%clk 0:00:22.6]} 35... Nc6 {[%clk 0:00:22.6]} 36.
Rb1 {[%clk 0:00:21.7]} 36... Kb8 {[%clk 0:00:21.8]} 37. e3 {[%clk 0:00:21.7]}
37... Nd8 {[%clk 0:00:22]} 38. Rd1 {[%clk 0:00:21.7]} 38... Nxb7 {[%clk
0:00:18.9]} 39. Rd7 {[%clk 0:00:22.2]} 1-0

[Event "*** Titled Tuesday Blitz"]
[Site "Chess.com"]
[Date "2020.04.14"]
[Round "7"]
[White "LuckSlayeer"]
[Black "jaskol95"]
[Result "1-0"]
[WhiteElo "2576"]
[BlackElo "2400"]
[TimeControl "180+1"]
[EndTime "11:13:55 PDT"]
[Termination "LuckSlayeer won by checkmate"]

1. Nf3 {[%clk 0:03:00.9]} 1... Nf6 {[%clk 0:02:52.4]} 2. c4 {[%clk 0:03:00.6]}
2... g6 {[%clk 0:02:50.3]} 3. Nc3 {[%clk 0:02:59.9]} 3... Bg7 {[%clk 0:02:50.9]}
4. e4 {[%clk 0:03:00.1]} 4... d6 {[%clk 0:02:50.4]} 5. d4 {[%clk 0:03:00.2]}
5... O-O {[%clk 0:02:50.9]} 6. Be2 {[%clk 0:03:00.1]} 6... Nc6 {[%clk
0:02:51.3]} 7. O-O {[%clk 0:03:00.3]} 7... e5 {[%clk 0:02:51.5]} 8. d5 {[%clk
0:03:01]} 8... Ne7 {[%clk 0:02:50.8]} 9. b4 {[%clk 0:03:01.7]} 9... a5 {[%clk
0:02:50.4]} 10. Ba3 {[%clk 0:03:01.1]} 10... axb4 {[%clk 0:02:47.4]} 11. Bxb4
{[%clk 0:03:02]} 11... b6 {[%clk 0:02:48.2]} 12. a4 {[%clk 0:03:02.1]} 12... Nh5
{[%clk 0:02:44]} 13. a5 {[%clk 0:02:48.9]} 13... bxa5 {[%clk 0:02:41]} 14. Rxa5
{[%clk 0:02:47.3]} 14... Rxa5 {[%clk 0:02:28.2]} 15. Bxa5 {[%clk 0:02:47.5]}
15... f5 {[%clk 0:02:17.9]} 16. Nb5 {[%clk 0:02:39.2]} 16... fxe4 {[%clk
0:02:16.4]} 17. Ng5 {[%clk 0:02:30.8]} 17... Nc6 {[%clk 0:02:00.9]} 18. Ne6
{[%clk 0:01:41.6]} 18... Bxe6 {[%clk 0:01:42.7]} 19. Bxc7 {[%clk 0:01:41.4]}
19... Qg5 {[%clk 0:01:39.5]} 20. dxe6 {[%clk 0:00:58.1]} 20... Nf4 {[%clk
0:01:34.3]} 21. g3 {[%clk 0:00:54.7]} 21... Nd4 {[%clk 0:01:27.2]} 22. Nxd4
{[%clk 0:00:45.3]} 22... exd4 {[%clk 0:01:26.8]} 23. Bxd6 {[%clk 0:00:45.6]}
23... Nxe6 {[%clk 0:01:04.3]} 24. Bxf8 {[%clk 0:00:43.7]} 24... Bxf8 {[%clk
0:01:04.9]} 25. Bg4 {[%clk 0:00:43]} 25... Nc5 {[%clk 0:00:53.5]} 26. h4 {[%clk
0:00:40.3]} 26... Qe5 {[%clk 0:00:53.5]} 27. Re1 {[%clk 0:00:38.5]} 27... Bd6
{[%clk 0:00:46.4]} 28. Bf3 {[%clk 0:00:37.3]} 28... e3 {[%clk 0:00:42.2]} 29.
Bd5+ {[%clk 0:00:26.6]} 29... Kg7 {[%clk 0:00:37.6]} 30. Qf3 {[%clk 0:00:24.9]}
30... Nd3 {[%clk 0:00:20.2]} 31. Re2 {[%clk 0:00:25.1]} 31... exf2+ {[%clk
0:00:19.8]} 32. Kf1 {[%clk 0:00:24.8]} 32... Qxg3 {[%clk 0:00:18.3]} 33. Re7+
{[%clk 0:00:18]} 33... Kh6 {[%clk 0:00:17.8]} 34. Qf8+ {[%clk 0:00:15.7]} 34...
Kh5 {[%clk 0:00:17.3]} 35. Rxh7+ {[%clk 0:00:15.8]} 35... Kg4 {[%clk 0:00:17.6]}
36. Be6# {[%clk 0:00:15.8]} 1-0

[Event "*** Titled Tuesday Blitz"]
[Site "Chess.com"]
[Date "2020.04.14"]
[Round "7"]
[White "RestartingChess"]
[Black "maxsergej"]
[Result "1-0"]
[WhiteElo "2384"]
[BlackElo "2232"]
[TimeControl "180+1"]
[EndTime "11:13:58 PDT"]
[Termination "RestartingChess won on time"]

1. e4 {[%clk 0:03:00.9]} 1... c5 {[%clk 0:02:59.6]} 2. d3 {[%clk 0:03:00.6]}
2... Nc6 {[%clk 0:02:58.9]} 3. Nd2 {[%clk 0:03:01.5]} 3... g6 {[%clk 0:02:59]}
4. g3 {[%clk 0:03:02.4]} 4... Bg7 {[%clk 0:02:58.8]} 5. Bg2 {[%clk 0:03:03.3]}
5... e6 {[%clk 0:02:58]} 6. Ngf3 {[%clk 0:03:04.2]} 6... d6 {[%clk 0:02:57.9]}
7. O-O {[%clk 0:03:04.9]} 7... Nge7 {[%clk 0:02:58]} 8. c3 {[%clk 0:03:05.2]}
8... O-O {[%clk 0:02:57.8]} 9. Re1 {[%clk 0:03:05.6]} 9... Qc7 {[%clk
0:02:55.1]} 10. Nf1 {[%clk 0:03:05.1]} 10... Rb8 {[%clk 0:02:53]} 11. Ne3 {[%clk
0:03:05.6]} 11... b5 {[%clk 0:02:51.9]} 12. Ng4 {[%clk 0:03:06]} 12... e5 {[%clk
0:02:47.8]} 13. Nh6+ {[%clk 0:02:56.3]} 13... Kh8 {[%clk 0:02:42.9]} 14. h4
{[%clk 0:02:56.5]} 14... b4 {[%clk 0:02:31.6]} 15. g4 {[%clk 0:02:56.4]} 15...
bxc3 {[%clk 0:02:23]} 16. bxc3 {[%clk 0:02:57.3]} 16... Ng8 {[%clk 0:02:22.9]}
17. Nxg8 {[%clk 0:02:47.7]} 17... Kxg8 {[%clk 0:02:22.9]} 18. h5 {[%clk
0:02:47.2]} 18... Bxg4 {[%clk 0:02:08.1]} 19. h6 {[%clk 0:02:46.8]} 19... Bf6
{[%clk 0:02:02.1]} 20. Re3 {[%clk 0:02:43]} 20... Qa5 {[%clk 0:01:50.1]} 21. Qc2
{[%clk 0:02:39.3]} 21... Rb7 {[%clk 0:01:33.6]} 22. Nh2 {[%clk 0:02:38.2]} 22...
Be6 {[%clk 0:01:31.8]} 23. Rf3 {[%clk 0:02:31.6]} 23... Bd8 {[%clk 0:01:22.9]}
24. Bh3 {[%clk 0:02:27.9]} 24... Bxh3 {[%clk 0:01:18.2]} 25. Rxh3 {[%clk
0:02:28.8]} 25... f5 {[%clk 0:01:06.1]} 26. Nf3 {[%clk 0:02:17.5]} 26... fxe4
{[%clk 0:01:02.1]} 27. dxe4 {[%clk 0:02:16.8]} 27... Rbf7 {[%clk 0:01:00.8]} 28.
Qd3 {[%clk 0:02:13.6]} 28... Be7 {[%clk 0:00:41.4]} 29. Bg5 {[%clk 0:01:59.4]}
29... Qc7 {[%clk 0:00:38.2]} 30. Qd5 {[%clk 0:01:32]} 30... Kh8 {[%clk
0:00:37.6]} 31. Qd3 {[%clk 0:00:39.8]} 31... Qd7 {[%clk 0:00:29.6]} 32. Rg3
{[%clk 0:00:39.1]} 32... Qe6 {[%clk 0:00:28.6]} 33. Rb1 {[%clk 0:00:34.5]} 33...
c4 {[%clk 0:00:25.3]} 34. Qe2 {[%clk 0:00:32.8]} 34... d5 {[%clk 0:00:15.6]} 35.
Rb7 {[%clk 0:00:28.7]} 35... Bxg5 {[%clk 0:00:13.6]} 36. Nxg5 {[%clk 0:00:26.8]}
1-0